[Event "*** Titled Tuesday Blitz"]
[Site "Chess.com"]
[Date "2018.08.07"]
[Round "7"]
[White "PulpanJ"]
[Black "Maili15"]
[Result "1/2-1/2"]
[WhiteElo "2506"]
[BlackElo "2261"]
[TimeControl "180+2"]
[EndTime "14:33:53 PDT"]
[Termination "Game drawn by agreement"]

1. Nf3 {[%clk 0:03:01.9]} 1... d5 {[%clk 0:03:00.8]} 2. b3 {[%clk 0:03:02.3]}
2... Nf6 {[%clk 0:03:00.8]} 3. Bb2 {[%clk 0:03:03.2]} 3... e6 {[%clk 0:03:02]}
4. g3 {[%clk 0:03:00.7]} 4... Be7 {[%clk 0:03:02.9]} 5. Bg2 {[%clk 0:03:01.8]}
5... O-O {[%clk 0:03:04.4]} 6. O-O {[%clk 0:03:03.7]} 6... c5 {[%clk 0:03:05.4]}
7. e3 {[%clk 0:03:04.1]} 7... Nc6 {[%clk 0:03:05.6]} 8. c4 {[%clk 0:03:05.5]}
8... d4 {[%clk 0:03:01.6]} 9. exd4 {[%clk 0:03:06.3]} 9... cxd4 {[%clk
0:03:03.5]} 10. Re1 {[%clk 0:03:07]} 10... Qc7 {[%clk 0:02:55]} 11. Na3 {[%clk
0:03:05.6]} 11... a6 {[%clk 0:02:37.7]} 12. d3 {[%clk 0:03:03.4]} 12... e5
{[%clk 0:02:33.5]} 13. Nc2 {[%clk 0:03:00.3]} 13... Nd7 {[%clk 0:02:30.7]} 14.
a3 {[%clk 0:02:58.9]} 14... a5 {[%clk 0:02:30.3]} 15. Nd2 {[%clk 0:02:52.9]}
15... f6 {[%clk 0:02:28.3]} 16. Rb1 {[%clk 0:02:49.3]} 16... Rb8 {[%clk
0:02:17.3]} 17. Bc1 {[%clk 0:02:48.8]} 17... Nc5 {[%clk 0:02:10.9]} 18. Ne4
{[%clk 0:02:45.4]} 18... Nxe4 {[%clk 0:02:02.9]} 19. Bxe4 {[%clk 0:02:46.1]}
19... Be6 {[%clk 0:01:54.7]} 20. b4 {[%clk 0:02:46.7]} 20... axb4 {[%clk
0:01:51.9]} 21. axb4 {[%clk 0:02:47.5]} 21... b5 {[%clk 0:01:39.5]} 22. c5
{[%clk 0:02:46.7]} 22... Qd7 {[%clk 0:01:20.6]} 23. Qf3 {[%clk 0:02:38.8]} 23...
Nd8 {[%clk 0:00:58.4]} 24. c6 {[%clk 0:02:36.6]} 24... Qc8 {[%clk 0:00:49.5]}
25. Bd5 {[%clk 0:02:34.6]} 25... Kh8 {[%clk 0:00:45.4]} 26. Bxe6 {[%clk
0:02:32.5]} 26... Nxe6 {[%clk 0:00:44.8]} 27. Bb2 {[%clk 0:02:31.2]} 27... Rb6
{[%clk 0:00:33.5]} 28. Na3 {[%clk 0:02:07.7]} 28... Bxb4 {[%clk 0:00:31.7]} 29.
Rec1 {[%clk 0:02:08.3]} 29... Bc5 {[%clk 0:00:28]} 30. Qd5 {[%clk 0:02:05.3]}
30... b4 {[%clk 0:00:26.3]} 31. Nc4 {[%clk 0:02:01.4]} 31... Rxc6 {[%clk
0:00:26.9]} 32. Ba1 {[%clk 0:02:01.5]} 32... Rd8 {[%clk 0:00:23.4]} 33. Qg2
{[%clk 0:02:00.7]} 33... Qd7 {[%clk 0:00:20.6]} 34. Na5 {[%clk 0:02:00.8]} 34...
Ra6 {[%clk 0:00:18.9]} 35. Nb7 {[%clk 0:02:01.8]} 35... Rc8 {[%clk 0:00:19.3]}
36. Nxc5 {[%clk 0:02:00.2]} 36... Nxc5 {[%clk 0:00:15.7]} 37. Bb2 {[%clk
0:02:00.3]} 37... Nxd3 {[%clk 0:00:15]} 38. Rxc8+ {[%clk 0:01:54.8]} 38... Qxc8
{[%clk 0:00:16.9]} 39. Qf1 {[%clk 0:01:56.2]} 39... e4 {[%clk 0:00:10.8]} 40.
Bxd4 {[%clk 0:01:56.7]} 40... Rd6 {[%clk 0:00:09.8]} 41. Be3 {[%clk 0:01:56]}
41... h6 {[%clk 0:00:08.6]} 42. Qd1 {[%clk 0:01:57]} 42... Qc4 {[%clk 0:00:09]}
43. Qa4 {[%clk 0:01:56.6]} 43... Kh7 {[%clk 0:00:08.6]} 44. Ra1 {[%clk
0:01:56.7]} 44... Qc3 {[%clk 0:00:06.6]} 45. Rb1 {[%clk 0:01:56.6]} 45... Rc6
{[%clk 0:00:05.6]} 46. Qa8 {[%clk 0:01:56.8]} 46... Rd6 {[%clk 0:00:04.9]} 47.
Qxe4+ {[%clk 0:01:57]} 47... Kg8 {[%clk 0:00:04.9]} 48. Qe7 {[%clk 0:01:57.8]}
48... Qc6 {[%clk 0:00:04.1]} 49. Ra1 {[%clk 0:01:57.4]} 49... Rd7 {[%clk
0:00:03.7]} 50. Qe8+ {[%clk 0:01:58.2]} 50... Kh7 {[%clk 0:00:04.7]} 51. Qf8
{[%clk 0:01:52.1]} 51... Ne5 {[%clk 0:00:03.8]} 52. Qxb4 {[%clk 0:01:50.9]}
52... Nf3+ {[%clk 0:00:04.4]} 53. Kf1 {[%clk 0:01:52.3]} 53... Qd5 {[%clk
0:00:02.7]} 54. Qb1+ {[%clk 0:01:52.8]} 54... g6 {[%clk 0:00:02.7]} 55. h4
{[%clk 0:01:52.4]} 55... Nh2+ {[%clk 0:00:03.6]} 56. Kg1 {[%clk 0:01:53.7]}
56... Nf3+ {[%clk 0:00:03.9]} 57. Kf1 {[%clk 0:01:55.2]} 57... Nh2+ {[%clk
0:00:05.1]} 58. Kg1 {[%clk 0:01:55.7]} 58... Nf3+ {[%clk 0:00:06.2]} 1/2-1/2

[Event "*** Titled Tuesday Blitz"]
[Site "Chess.com"]
[Date "2018.08.07"]
[Round "7"]
[White "Last7Samurai"]
[Black "Kimster98"]
[Result "1-0"]
[WhiteElo "2612"]
[BlackElo "2509"]
[TimeControl "180+2"]
[EndTime "14:34:01 PDT"]
[Termination "Last7Samurai won by resignation"]

1. d4 {[%clk 0:03:01.9]} 1... d5 {[%clk 0:03:00.1]} 2. Bf4 {[%clk 0:03:02.4]}
2... e6 {[%clk 0:02:59.4]} 3. e3 {[%clk 0:03:03.2]} 3... Bd6 {[%clk 0:03:00.9]}
4. Bg3 {[%clk 0:03:02.9]} 4... b6 {[%clk 0:02:50.7]} 5. Nd2 {[%clk 0:03:02]}
5... Ba6 {[%clk 0:02:46.8]} 6. Bxa6 {[%clk 0:03:01.2]} 6... Nxa6 {[%clk
0:02:48.7]} 7. c4 {[%clk 0:03:02.7]} 7... Nb8 {[%clk 0:02:47.6]} 8. Ngf3 {[%clk
0:03:01.8]} 8... c6 {[%clk 0:02:38.6]} 9. O-O {[%clk 0:02:54.8]} 9... Nf6 {[%clk
0:02:38.7]} 10. Rc1 {[%clk 0:02:53.6]} 10... Bxg3 {[%clk 0:02:15.1]} 11. hxg3
{[%clk 0:02:53.3]} 11... Nbd7 {[%clk 0:02:15.4]} 12. Qe2 {[%clk 0:02:48.6]}
12... O-O {[%clk 0:02:14.8]} 13. e4 {[%clk 0:02:47.4]} 13... dxe4 {[%clk
0:02:13.3]} 14. Nxe4 {[%clk 0:02:49.3]} 14... Nxe4 {[%clk 0:02:12.9]} 15. Qxe4
{[%clk 0:02:51.2]} 15... Qc7 {[%clk 0:02:14.2]} 16. Rfd1 {[%clk 0:02:46.6]}
16... Nf6 {[%clk 0:02:12.1]} 17. Qe2 {[%clk 0:02:42.1]} 17... Rfd8 {[%clk
0:02:06.7]} 18. b4 {[%clk 0:02:40.5]} 18... a5 {[%clk 0:02:01.4]} 19. a3 {[%clk
0:02:40.3]} 19... axb4 {[%clk 0:02:02.5]} 20. axb4 {[%clk 0:02:42.1]} 20... Qb7
{[%clk 0:01:57.5]} 21. Ne5 {[%clk 0:02:39.7]} 21... b5 {[%clk 0:01:52.8]} 22. g4
{[%clk 0:02:26]} 22... h6 {[%clk 0:01:35.8]} 23. Qf3 {[%clk 0:02:25.8]} 23...
bxc4 {[%clk 0:01:29]} 24. Nxc6 {[%clk 0:02:25.6]} 24... Rdc8 {[%clk 0:01:22.5]}
25. Rxc4 {[%clk 0:02:25.1]} 25... Nd5 {[%clk 0:01:23]} 26. Rdc1 {[%clk
0:02:25.6]} 26... Rc7 {[%clk 0:01:00.3]} 27. R1c2 {[%clk 0:01:37.4]} 27... Qb6
{[%clk 0:00:40.6]} 28. g3 {[%clk 0:01:34.9]} 28... Rac8 {[%clk 0:00:22.7]} 29.
b5 {[%clk 0:01:35.9]} 29... Kf8 {[%clk 0:00:15.5]} 30. Qa3+ {[%clk 0:01:31.1]}
30... Kg8 {[%clk 0:00:12.6]} 31. Qd6 {[%clk 0:01:28.3]} 31... Kh8 {[%clk
0:00:10.7]} 32. Rc5 {[%clk 0:01:25.4]} 32... Nf6 {[%clk 0:00:11.9]} 33. g5
{[%clk 0:01:06.6]} 33... Ne4 {[%clk 0:00:08.9]} 34. Qe5 {[%clk 0:01:05.1]} 34...
Nxc5 {[%clk 0:00:09.4]} 35. gxh6 {[%clk 0:01:03.6]} 35... f6 {[%clk 0:00:10.7]}
36. hxg7+ {[%clk 0:01:04.8]} 36... Kxg7 {[%clk 0:00:11.3]} 37. Qxc5 {[%clk
0:01:00.5]} 37... Qxc5 {[%clk 0:00:12.5]} 38. dxc5 {[%clk 0:00:59.4]} 38... e5
{[%clk 0:00:13.2]} 39. Kg2 {[%clk 0:00:57.9]} 39... Kf7 {[%clk 0:00:14.3]} 40.
Kf3 {[%clk 0:00:58.7]} 40... Ke6 {[%clk 0:00:15.8]} 41. g4 {[%clk 0:00:59.3]}
41... Kd5 {[%clk 0:00:14.7]} 42. Nb4+ {[%clk 0:00:59.9]} 42... Ke6 {[%clk
0:00:14.1]} 43. c6 {[%clk 0:01:00.9]} 43... Ra7 {[%clk 0:00:11.6]} 44. b6 {[%clk
0:00:55.2]} 44... Ra3+ {[%clk 0:00:12.7]} 45. Kg2 {[%clk 0:00:55.1]} 45... Ra4
{[%clk 0:00:14]} 46. b7 {[%clk 0:00:55.5]} 46... Rg8 {[%clk 0:00:15.2]} 47. c7
{[%clk 0:00:53.1]} 47... Rxg4+ {[%clk 0:00:14.6]} 48. Kf3 {[%clk 0:00:52.1]}
48... Rf4+ {[%clk 0:00:15.2]} 49. Ke3 {[%clk 0:00:50.6]} 49... Raxb4 {[%clk
0:00:15.5]} 50. c8=Q+ {[%clk 0:00:50.8]} 1-0

[Event "*** Titled Tuesday Blitz"]
[Site "Chess.com"]
[Date "2018.08.07"]
[Round "7"]
[White "oskariot"]
[Black "m3alam"]
[Result "1-0"]
[WhiteElo "2475"]
[BlackElo "2206"]
[TimeControl "180+2"]
[EndTime "14:34:13 PDT"]
[Termination "oskariot won by resignation"]

1. c4 {[%clk 0:02:50.4]} 1... Nf6 {[%clk 0:02:50.8]} 2. g3 {[%clk 0:02:46.6]}
2... g6 {[%clk 0:02:51.4]} 3. Bg2 {[%clk 0:02:47.3]} 3... Bg7 {[%clk 0:02:52.8]}
4. Nc3 {[%clk 0:02:48.6]} 4... O-O {[%clk 0:02:54.2]} 5. e4 {[%clk 0:02:50.2]}
5... d6 {[%clk 0:02:53.4]} 6. Nge2 {[%clk 0:02:50.9]} 6... c5 {[%clk 0:02:54.2]}
7. O-O {[%clk 0:02:50.4]} 7... Nc6 {[%clk 0:02:54.9]} 8. d3 {[%clk 0:02:50.7]}
8... Rb8 {[%clk 0:02:53.4]} 9. h3 {[%clk 0:02:49.5]} 9... a6 {[%clk 0:02:49.5]}
10. a4 {[%clk 0:02:50.5]} 10... Bd7 {[%clk 0:02:45.4]} 11. Be3 {[%clk 0:02:43]}
11... e6 {[%clk 0:02:33.6]} 12. d4 {[%clk 0:02:40.8]} 12... cxd4 {[%clk
0:02:33.6]} 13. Nxd4 {[%clk 0:02:42.7]} 13... Ne5 {[%clk 0:02:29.5]} 14. b3
{[%clk 0:02:43.2]} 14... Qc7 {[%clk 0:02:28.6]} 15. Qd2 {[%clk 0:02:28.9]} 15...
Rfd8 {[%clk 0:02:22.4]} 16. Rfc1 {[%clk 0:02:24]} 16... Be8 {[%clk 0:02:22.1]}
17. a5 {[%clk 0:02:20]} 17... Nfd7 {[%clk 0:02:10.9]} 18. f4 {[%clk 0:01:38.6]}
18... Nc6 {[%clk 0:02:11]} 19. Nd5 {[%clk 0:01:34.2]} 19... exd5 {[%clk
0:01:58.6]} 20. cxd5 {[%clk 0:01:34.2]} 20... Nc5 {[%clk 0:01:55]} 21. dxc6
{[%clk 0:01:28]} 21... bxc6 {[%clk 0:01:56.4]} 22. b4 {[%clk 0:01:19.8]} 22...
Bxd4 {[%clk 0:01:29.6]} 23. Qxd4 {[%clk 0:01:05.5]} 23... Nb3 {[%clk 0:01:29.7]}
24. Qf6 {[%clk 0:00:57]} 24... Rxb4 {[%clk 0:01:19]} 25. Rab1 {[%clk 0:00:43.3]}
25... d5 {[%clk 0:00:46.4]} 26. Rxb3 {[%clk 0:00:37.9]} 26... d4 {[%clk
0:00:35.1]} 27. Rxb4 {[%clk 0:00:33.8]} 27... dxe3 {[%clk 0:00:35.7]} 28. Rd4
{[%clk 0:00:21.8]} 28... Rb8 {[%clk 0:00:29]} 29. Re1 {[%clk 0:00:18.6]} 29...
Qxa5 {[%clk 0:00:24.5]} 30. Rxe3 {[%clk 0:00:16.8]} 30... Rb1+ {[%clk
0:00:25.7]} 31. Kh2 {[%clk 0:00:18.2]} 31... Qa1 {[%clk 0:00:26.6]} 32. Qe5
{[%clk 0:00:12.4]} 32... Rd1 {[%clk 0:00:17]} 33. Rxd1 {[%clk 0:00:09.6]} 33...
Qxd1 {[%clk 0:00:16.5]} 34. Qxe8+ {[%clk 0:00:10.9]} 34... Kg7 {[%clk
0:00:18.2]} 35. Qe5+ {[%clk 0:00:12.1]} 35... Kf8 {[%clk 0:00:19.5]} 36. Rc3
{[%clk 0:00:12.7]} 36... Qd8 {[%clk 0:00:17.9]} 37. Qc5+ {[%clk 0:00:13.2]}
37... Kg8 {[%clk 0:00:18]} 38. Qxc6 {[%clk 0:00:15.1]} 38... a5 {[%clk
0:00:18.7]} 39. Qc8 {[%clk 0:00:16]} 39... Qxc8 {[%clk 0:00:20.6]} 40. Rxc8+
{[%clk 0:00:17.2]} 1-0

[Event "*** Titled Tuesday Blitz"]
[Site "Chess.com"]
[Date "2018.08.07"]
[Round "7"]
[White "BasilSmash"]
[Black "Angry_Twin"]
[Result "0-1"]
[WhiteElo "2444"]
[BlackElo "2638"]
[TimeControl "180+2"]
[EndTime "14:34:15 PDT"]
[Termination "Angry_Twin won by checkmate"]

1. d4 {[%clk 0:03:01.9]} 1... Nf6 {[%clk 0:03:00.9]} 2. Nf3 {[%clk 0:03:02.3]}
2... d5 {[%clk 0:03:01.6]} 3. Bf4 {[%clk 0:03:02.9]} 3... c5 {[%clk 0:03:02.8]}
4. e3 {[%clk 0:03:03.9]} 4... Nc6 {[%clk 0:03:04.2]} 5. Nbd2 {[%clk 0:02:59.7]}
5... e6 {[%clk 0:03:04.8]} 6. c3 {[%clk 0:03:00]} 6... cxd4 {[%clk 0:03:06]} 7.
exd4 {[%clk 0:03:00.6]} 7... Nh5 {[%clk 0:03:07.4]} 8. Be3 {[%clk 0:02:56.2]}
8... Bd6 {[%clk 0:03:08]} 9. Ne5 {[%clk 0:02:40.5]} 9... g6 {[%clk 0:03:08.7]}
10. Nd3 {[%clk 0:02:39.5]} 10... O-O {[%clk 0:03:05.3]} 11. g3 {[%clk
0:02:39.8]} 11... Ng7 {[%clk 0:03:05.7]} 12. Bg2 {[%clk 0:02:39]} 12... Nf5
{[%clk 0:03:06.9]} 13. O-O {[%clk 0:02:39.8]} 13... Nxe3 {[%clk 0:03:07.4]} 14.
fxe3 {[%clk 0:02:41.7]} 14... f5 {[%clk 0:03:06.4]} 15. c4 {[%clk 0:02:33.4]}
15... Ne7 {[%clk 0:02:45.9]} 16. c5 {[%clk 0:02:29.9]} 16... Bc7 {[%clk
0:02:46.3]} 17. b4 {[%clk 0:02:30.7]} 17... Bd7 {[%clk 0:02:47.2]} 18. a4 {[%clk
0:02:30.8]} 18... a6 {[%clk 0:02:48.4]} 19. Nf3 {[%clk 0:02:28.3]} 19... Qe8
{[%clk 0:02:49.3]} 20. Qb3 {[%clk 0:02:27.8]} 20... Nc6 {[%clk 0:02:44.9]} 21.
Rfb1 {[%clk 0:02:18.6]} 21... Qe7 {[%clk 0:02:42.9]} 22. Bf1 {[%clk 0:02:14.9]}
22... Rfb8 {[%clk 0:02:40.5]} 23. b5 {[%clk 0:02:14.5]} 23... Na5 {[%clk
0:02:41.2]} 24. Qc3 {[%clk 0:02:10.3]} 24... axb5 {[%clk 0:02:39.5]} 25. axb5
{[%clk 0:02:10.2]} 25... Nc4 {[%clk 0:02:41]} 26. b6 {[%clk 0:02:06.7]} 26...
Bd8 {[%clk 0:02:41.9]} 27. Nde5 {[%clk 0:02:05.6]} 27... Nxe5 {[%clk 0:02:42.1]}
28. Nxe5 {[%clk 0:02:07.5]} 28... Be8 {[%clk 0:02:43.7]} 29. Ra7 {[%clk
0:02:02.5]} 29... Rc8 {[%clk 0:02:39.7]} 30. Rba1 {[%clk 0:01:59.9]} 30... Rab8
{[%clk 0:02:41]} 31. Qb3 {[%clk 0:01:52.2]} 31... Qg5 {[%clk 0:02:30.9]} 32. Kf2
{[%clk 0:01:44.9]} 32... Qh6 {[%clk 0:02:28.8]} 33. h4 {[%clk 0:01:43.9]} 33...
g5 {[%clk 0:02:28.8]} 34. hxg5 {[%clk 0:01:42.5]} 34... Bxg5 {[%clk 0:02:30.7]}
35. Nf3 {[%clk 0:01:37.1]} 35... Bf6 {[%clk 0:02:27.7]} 36. Bb5 {[%clk
0:01:33.2]} 36... Bh5 {[%clk 0:02:10.9]} 37. Rh1 {[%clk 0:01:32.7]} 37... Kh8
{[%clk 0:01:55.5]} 38. Bd7 {[%clk 0:01:07.8]} 38... Rg8 {[%clk 0:01:51.7]} 39.
Bxe6 {[%clk 0:01:07.7]} 39... Qg6 {[%clk 0:01:51.4]} 40. Bxg8 {[%clk 0:01:07.3]}
40... Rxg8 {[%clk 0:01:53.3]} 41. Rxh5 {[%clk 0:00:56.9]} 41... Qxg3+ {[%clk
0:01:53.2]} 42. Ke2 {[%clk 0:00:54.6]} 42... Qg2+ {[%clk 0:01:53.6]} 43. Kd3
{[%clk 0:00:52.2]} 43... Qxf3 {[%clk 0:01:46.5]} 44. Rh2 {[%clk 0:00:50.9]}
44... Rg3 {[%clk 0:00:58.2]} 45. Kc2 {[%clk 0:00:27.8]} 45... Rg1 {[%clk
0:00:42.2]} 46. Rd2 {[%clk 0:00:23.1]} 46... Qf1 {[%clk 0:00:39.5]} 47. Qxd5
{[%clk 0:00:16.2]} 47... Qb1+ {[%clk 0:00:39.4]} 48. Kc3 {[%clk 0:00:15.7]}
48... Rc1+ {[%clk 0:00:41.3]} 49. Rc2 {[%clk 0:00:14.6]} 49... Rxc2+ {[%clk
0:00:42]} 50. Kd3 {[%clk 0:00:15.3]} 50... Rb2+ {[%clk 0:00:43.6]} 51. Kc3
{[%clk 0:00:14.9]} 51... Qc2# {[%clk 0:00:45.5]} 0-1

[Event "*** Titled Tuesday Blitz"]
[Site "Chess.com"]
[Date "2018.08.07"]
[Round "7"]
[White "inegrepus"]
[Black "NemtsevIgor"]
[Result "0-1"]
[WhiteElo "2195"]
[BlackElo "2380"]
[TimeControl "180+2"]
[EndTime "14:34:16 PDT"]
[Termination "NemtsevIgor won by checkmate"]

1. d4 {[%clk 0:03:01.7]} 1... c6 {[%clk 0:02:50.2]} 2. c4 {[%clk 0:03:02.2]}
2... d6 {[%clk 0:02:42.5]} 3. Nc3 {[%clk 0:03:03]} 3... Nd7 {[%clk 0:02:43.4]}
4. e4 {[%clk 0:03:04.3]} 4... h6 {[%clk 0:02:31.9]} 5. f4 {[%clk 0:03:04]} 5...
g5 {[%clk 0:02:23.6]} 6. fxg5 {[%clk 0:03:03.8]} 6... hxg5 {[%clk 0:02:17.1]} 7.
Bxg5 {[%clk 0:03:04.4]} 7... Bg7 {[%clk 0:02:13]} 8. Nf3 {[%clk 0:03:04.8]} 8...
Qb6 {[%clk 0:02:12.4]} 9. Qd2 {[%clk 0:03:00.7]} 9... Nf8 {[%clk 0:02:10.9]} 10.
Be2 {[%clk 0:02:59.6]} 10... Ne6 {[%clk 0:02:11.8]} 11. Be3 {[%clk 0:03:00.8]}
11... Nh6 {[%clk 0:02:11.7]} 12. d5 {[%clk 0:02:59.5]} 12... Nc5 {[%clk
0:02:12.9]} 13. Nd4 {[%clk 0:02:40.6]} 13... Ng4 {[%clk 0:02:06.1]} 14. Bxg4
{[%clk 0:02:38.5]} 14... Bxg4 {[%clk 0:02:08]} 15. dxc6 {[%clk 0:02:34.9]} 15...
bxc6 {[%clk 0:02:08.4]} 16. Qf2 {[%clk 0:01:28.1]} 16... Qxb2 {[%clk 0:02:04.9]}
17. Qxb2 {[%clk 0:01:20.4]} 17... Nd3+ {[%clk 0:02:04.6]} 18. Kd2 {[%clk
0:01:17.1]} 18... Nxb2 {[%clk 0:02:06.5]} 19. h3 {[%clk 0:01:06.6]} 19... Nxc4+
{[%clk 0:02:03.8]} 20. Kd3 {[%clk 0:01:07.9]} 20... Nxe3 {[%clk 0:02:02.1]} 21.
Kxe3 {[%clk 0:01:08.7]} 21... Bd7 {[%clk 0:01:59.9]} 22. Rac1 {[%clk 0:01:07.6]}
22... Bh6+ {[%clk 0:01:57.9]} 23. Ke2 {[%clk 0:01:07.1]} 23... Bxc1 {[%clk
0:01:59.8]} 24. Rxc1 {[%clk 0:01:07.6]} 24... Rb8 {[%clk 0:01:58.2]} 25. Rc2
{[%clk 0:01:03.1]} 25... e5 {[%clk 0:01:51.5]} 26. Nb3 {[%clk 0:00:59.9]} 26...
Ke7 {[%clk 0:01:50.5]} 27. Na5 {[%clk 0:00:59.9]} 27... Rhg8 {[%clk 0:01:43.2]}
28. Kf2 {[%clk 0:00:59.5]} 28... Rb6 {[%clk 0:01:41.3]} 29. Nd1 {[%clk
0:00:57.9]} 29... Ra6 {[%clk 0:01:40.1]} 30. Nc4 {[%clk 0:00:56.1]} 30... f5
{[%clk 0:01:38.7]} 31. Nde3 {[%clk 0:00:53.1]} 31... fxe4 {[%clk 0:01:35.8]} 32.
Rd2 {[%clk 0:00:46.6]} 32... d5 {[%clk 0:01:28.1]} 33. Nxe5 {[%clk 0:00:47.5]}
33... Rf8+ {[%clk 0:01:24.6]} 34. Kg1 {[%clk 0:00:44.6]} 34... Ra3 {[%clk
0:01:21.5]} 35. N3g4 {[%clk 0:00:09.7]} 35... Bxg4 {[%clk 0:01:20.5]} 36. hxg4
{[%clk 0:00:06.4]} 36... Rc8 {[%clk 0:01:13.2]} 37. g5 {[%clk 0:00:07.1]} 37...
e3 {[%clk 0:01:13.9]} 38. Re2 {[%clk 0:00:08]} 38... d4 {[%clk 0:01:15.1]} 39.
Nc4 {[%clk 0:00:08.4]} 39... Rc3 {[%clk 0:01:14.5]} 40. Ne5 {[%clk 0:00:08.1]}
40... Ke6 {[%clk 0:01:14.6]} 41. Nf3 {[%clk 0:00:08.2]} 41... c5 {[%clk
0:01:13.5]} 42. g6 {[%clk 0:00:09.4]} 42... Kf5 {[%clk 0:01:13.8]} 43. g7 {[%clk
0:00:09.9]} 43... Rg8 {[%clk 0:01:13.3]} 44. Nxd4+ {[%clk 0:00:09.4]} 44... cxd4
{[%clk 0:01:13]} 45. Rb2 {[%clk 0:00:11.3]} 45... Rxg7 {[%clk 0:01:12.9]} 46.
Rb5+ {[%clk 0:00:12.1]} 46... Ke4 {[%clk 0:01:13.5]} 47. a4 {[%clk 0:00:13.1]}
47... d3 {[%clk 0:01:12.8]} 48. a5 {[%clk 0:00:14.1]} 48... Rc1+ {[%clk
0:01:12.6]} 49. Kh2 {[%clk 0:00:14.7]} 49... e2 {[%clk 0:01:12.8]} 50. a6 {[%clk
0:00:14.1]} 50... e1=Q {[%clk 0:01:09.7]} 51. g4 {[%clk 0:00:14.9]} 51... Qh4+
{[%clk 0:01:05.8]} 52. Kg2 {[%clk 0:00:15.4]} 52... Rxg4# {[%clk 0:01:06.1]} 0-1

[Event "*** Titled Tuesday Blitz"]
[Site "Chess.com"]
[Date "2018.08.07"]
[Round "7"]
[White "LittlePeasant"]
[Black "Mr_Penings"]
[Result "1-0"]
[WhiteElo "2785"]
[BlackElo "2509"]
[TimeControl "180+2"]
[EndTime "14:34:18 PDT"]
[Termination "LittlePeasant won on time"]

1. Nf3 {[%clk 0:03:01.9]} 1... c5 {[%clk 0:03:00.4]} 2. b3 {[%clk 0:03:02.6]}
2... Nc6 {[%clk 0:02:55]} 3. Bb2 {[%clk 0:03:02.6]} 3... Nf6 {[%clk 0:02:48.3]}
4. g3 {[%clk 0:02:58.1]} 4... g6 {[%clk 0:02:47.8]} 5. Bxf6 {[%clk 0:02:55.9]}
5... exf6 {[%clk 0:02:49.7]} 6. c4 {[%clk 0:02:57]} 6... d5 {[%clk 0:02:48.5]}
7. cxd5 {[%clk 0:02:55.3]} 7... Qxd5 {[%clk 0:02:50.4]} 8. Nc3 {[%clk
0:02:56.6]} 8... Qd7 {[%clk 0:02:36.3]} 9. Bg2 {[%clk 0:02:56.6]} 9... Bg7
{[%clk 0:02:34.8]} 10. Rc1 {[%clk 0:02:56.8]} 10... O-O {[%clk 0:02:32.3]} 11.
O-O {[%clk 0:02:54.6]} 11... Rb8 {[%clk 0:02:19.9]} 12. d3 {[%clk 0:02:14.2]}
12... b6 {[%clk 0:02:10]} 13. Qd2 {[%clk 0:02:15.1]} 13... Bb7 {[%clk
0:02:04.2]} 14. Qf4 {[%clk 0:02:14.7]} 14... f5 {[%clk 0:01:34.2]} 15. Qh4
{[%clk 0:02:05.3]} 15... Qe7 {[%clk 0:01:25.9]} 16. Qxe7 {[%clk 0:01:53]} 16...
Nxe7 {[%clk 0:01:27.8]} 17. Nd2 {[%clk 0:01:54.3]} 17... Nc6 {[%clk 0:01:07.8]}
18. Nc4 {[%clk 0:01:50.2]} 18... Nd4 {[%clk 0:01:06.4]} 19. Bxb7 {[%clk
0:01:49.7]} 19... Rxb7 {[%clk 0:01:08.3]} 20. e3 {[%clk 0:01:46.3]} 20... Nf3+
{[%clk 0:01:04.5]} 21. Kg2 {[%clk 0:01:46]} 21... Ne5 {[%clk 0:01:04.3]} 22.
Nxe5 {[%clk 0:01:40.1]} 22... Bxe5 {[%clk 0:01:06.2]} 23. Nd5 {[%clk 0:01:41.4]}
23... Rd8 {[%clk 0:01:03]} 24. e4 {[%clk 0:01:42.4]} 24... Kg7 {[%clk
0:00:57.8]} 25. h4 {[%clk 0:01:37.5]} 25... fxe4 {[%clk 0:00:58]} 26. dxe4
{[%clk 0:01:38.2]} 26... f5 {[%clk 0:00:59]} 27. f3 {[%clk 0:01:31.5]} 27... Bd4
{[%clk 0:00:54.4]} 28. Nf4 {[%clk 0:01:27.5]} 28... Re7 {[%clk 0:00:45.6]} 29.
exf5 {[%clk 0:01:24.1]} 29... gxf5 {[%clk 0:00:46.5]} 30. Rc2 {[%clk 0:01:21.9]}
30... Kf7 {[%clk 0:00:41.6]} 31. g4 {[%clk 0:01:17.6]} 31... Be3 {[%clk
0:00:25.7]} 32. Ne2 {[%clk 0:01:13.7]} 32... f4 {[%clk 0:00:26.5]} 33. Nc3
{[%clk 0:01:12.3]} 33... Red7 {[%clk 0:00:27.3]} 34. Ne4 {[%clk 0:01:13.2]}
34... Rd1 {[%clk 0:00:27]} 35. Rxd1 {[%clk 0:01:11.8]} 35... Rxd1 {[%clk
0:00:28.9]} 36. h5 {[%clk 0:01:03.4]} 36... h6 {[%clk 0:00:29.2]} 37. Kh2 {[%clk
0:00:57.9]} 37... Ke6 {[%clk 0:00:28.9]} 38. Rg2 {[%clk 0:00:58.3]} 38... Rd5
{[%clk 0:00:18.7]} 39. Kh3 {[%clk 0:00:56.1]} 39... b5 {[%clk 0:00:17.1]} 40. g5
{[%clk 0:00:55.5]} 40... hxg5 {[%clk 0:00:17.9]} 41. Kg4 {[%clk 0:00:54.1]}
41... c4 {[%clk 0:00:16.3]} 42. bxc4 {[%clk 0:00:51.9]} 42... bxc4 {[%clk
0:00:17.3]} 43. Nxg5+ {[%clk 0:00:52.9]} 43... Kf6 {[%clk 0:00:16.9]} 44. Ne4+
{[%clk 0:00:53.8]} 44... Ke5 {[%clk 0:00:17.1]} 45. h6 {[%clk 0:00:53.8]} 45...
Rd7 {[%clk 0:00:14.9]} 46. Kh5 {[%clk 0:00:53.3]} 46... Bd4 {[%clk 0:00:13.1]}
47. Rg7 {[%clk 0:00:52.8]} 47... Rd8 {[%clk 0:00:10.6]} 48. h7 {[%clk
0:00:52.8]} 48... Ke6 {[%clk 0:00:08.6]} 49. Rg8 {[%clk 0:00:53.6]} 49... Ke7
{[%clk 0:00:10.1]} 50. Kg6 {[%clk 0:00:46.8]} 50... c3 {[%clk 0:00:11.1]} 51.
Rxd8 {[%clk 0:00:37.5]} 51... Kxd8 {[%clk 0:00:11.8]} 52. Nf6 {[%clk 0:00:39.1]}
1-0